Cogmind - Beta 9.6 @@@ ROGUE MODE // 2020.06.16 @ 17:01:17 Player: 1upsuper Result: Destroyed by Y-64 Sentinel with Wave Gun Performance ------------- Evolutions (5) 2500 Regions Visited (6) 1200 Robots Destroyed (62) 310 Value Destroyed (2430) 2430 Prototype IDs (2) 40 Alien Tech Used (0) 0 Bonus (61) 61 TOTAL SCORE: 6541 Bonus ------- High Alert Combat Kills 61 Cogmind --------- Core Integrity 0/1000 Matter 91/300 Energy 100/100 System Corruption 1% Temperature Cool (9) Movement Core (100) Ox1 Location -5/Factory Parts ------- > --- POWER (2) -------- (None) > --- PROPULSION (5) --- (None) > --- UTILITY (6) ------ Advanced Heat Sink > --- WEAPON (4) ------- Heavy Laser > --- INVENTORY (4) ---- Advanced Targeting Computer Peak State ------------ > --- POWER ------------ Improved Deuterium Engine > --- PROPULSION ------- Carbon-fiber Leg Carbon-fiber Leg Carbon-fiber Leg Improved Titanium Leg Armored Leg > --- UTILITY ---------- Advanced Heat Sink Medium Storage Unit High-capacity Storage Unit Energy Filter Weapon Cycler Hardened Medium Armor Plating > --- WEAPON ----------- Particle Gun Flak Gun Flak Gun Flak Gun > --- INVENTORY -------- Advanced Heat Sink Advanced Signal Interpreter Advanced Targeting Computer Weapon Cycler Advanced ECM Suite Maneuvering Thrusters Hardened Medium Armor Plating Long-range Tractor Beam Heavy Laser Force Rifle Wave Gun Wave Gun Proton Cannon Rocket Launcher Remote Datajack Welding Torch [Rating: 60] Favorites ----------- Power Improved Deuterium Engine Engine Improved Deuterium Engine Power Core Light Nuclear Core Propulsion Carbon-fiber Leg Leg Carbon-fiber Leg Wheel Compact Wheel Utility High-capacity Storage Unit Device Advanced Heat Sink Storage High-capacity Storage Unit Processor Terrain Scan Processor Protection Improved Medium Armor Plating Weapon Flak Gun Energy Gun Particle Gun Energy Cannon Heavy Ion Cannon Ballistic Gun Flak Gun Ballistic Cannon Assault Cannon Launcher Rocket Launcher Build | -11 -10 -9 -8 -7 -6 -5 ------- Run | Scr Mat Mat Mat Fac Fac Fac Slots Evolved 10 | . . 2 2 2 2 2 Power 1 | . . . . . . 1 Propulsion 3 | . . . 2 . 1 . Utility 4 | . . 1 . 1 1 1 Weapon 2 | . . 1 . 1 . . Parts Attached 80 | 6 2 12 17 15 13 15 Power 9 | 1 . 2 2 . . 4 Engine 7 | 1 . 2 2 . . 2 Core 2 | . . . . . . 2 Reactor . | . . . . . . . Propulsion 17 | 2 . 2 8 1 1 3 Treads . | . . . . . . . Leg 16 | 2 . 2 8 1 1 2 Wheel 1 | . . . . . . 1 Hover . | . . . . . . . Flight . | . . . . . . . Utility 21 | 1 2 3 2 5 6 2 Device 12 | . 1 2 . 3 4 2 Storage 4 | 1 1 . . 1 1 . Processor 1 | . . 1 . . . . Hackware . | . . . . . . . Protection 4 | . . . 2 1 1 . Artifact . | . . . . . . . Weapon 33 | 2 . 5 5 9 6 6 Energy Gun 7 | . . . 3 2 . 2 Energy Cannon 3 | . . . . 2 . 1 Ballistic Gun 21 | 2 . 5 2 4 6 2 Ballistic Cannon 1 | . . . . 1 . . Launcher 1 | . . . . . . 1 Special Weapon . | . . . . . . . Impact Weapon . | . . . . . . . Slashing Weapon . | . . . . . . . Piercing Weapon . | . . . . . . . Special Melee Weapon . | . . . . . . . Unidentified Prototypes 2 | . . . 1 . . 1 Parts Lost 35 | . . 1 . 6 3 25 Power 5 | . . . . . . 5 Propulsion 8 | . . . . 1 . 7 Utility 8 | . . . . 1 2 5 Weapon 14 | . . 1 . 4 1 8 Highest Loss Streak 19 | . . 1 . 4 2 19 Average Slot Usage (%) 93 | . 86 95 99 94 96 72 Engine 8 | . 14 11 9 7 6 4 Leg 27 | . 28 22 36 28 29 19 Device 7 | . . 10 . 4 12 14 Storage 10 | . 14 11 9 10 13 9 Processor 5 | . . 10 9 5 . . Protection 4 | . . . 8 7 5 3 Energy Gun 5 | . . . 10 9 6 3 Ballistic Gun 18 | . 28 29 16 9 17 12 Ballistic Cannon 1 | . . . . 4 1 . Naked Turns . | . . . . . . . Heaviest Build 93 | 10 42 48 58 93 77 86 Greatest Support 81 | 20 20 20 55 74 81 81 Greatest Overweight (x) 16 | . 2 4 2 1 1 16 Average Overweight (x) . | . . 1 1 . . . Largest Inventory Capacity 20 | 6 14 12 12 20 16 16 Average Capacity 13 | 5 6 12 12 15 16 14 Most Carried 16 | 4 8 12 12 13 16 16 Average Carried 11 | 3 4 11 11 12 14 13 Final Capacity 16 | 6 12 12 12 12 16 4 Final Carried 16 | 4 8 12 12 12 16 1 Class Distribution -------------------- 55% | Scavenger-Tank 28% | Mutant 8% | Scavenger-Mutant 5% | Hauler-Mutant Dominant Class ---------------- Mutant | -10/Materials Mutant | -9/Materials Scavenger-Tank | -8/Materials Scavenger-Tank | -7/Factory Scavenger-Tank | -6/Factory Scavenger-Tank | -5/Factory Resources | -11 -10 -9 -8 -7 -6 -5 ----------- Run | Scr Mat Mat Mat Fac Fac Fac Matter Collected 1618 | 191 17 355 382 176 281 216 Remotely . | . . . . . . . Salvage Created 2538 | . 44 445 598 266 510 675 Parts 129 | . 7 27 29 8 30 28 Haulers Intercepted . | . . . . . . . Recyclers Shooed 2 | . . . . . . 2 Parts Field Recycled . | . . . . . . . Retrieved Matter . | . . . . . . . Parts Self-Destructed . | . . . . . . . Prevented . | . . . . . . . Kills | -11 -10 -9 -8 -7 -6 -5 ------- Run | Scr Mat Mat Mat Fac Fac Fac Combat Hostiles Destroyed 52 | . 3 14 10 5 6 14 Guns 46 | . 3 14 10 3 5 11 Cannons 2 | . . . . 1 . 1 AOE 4 | . . . . 1 1 2 Classes Destroyed 11 | . 1 3 4 1 2 . Worker 4 | . . . . . 3 1 Builder 2 | . . . . . 2 . Recycler 3 | . . . 1 . . 2 Watcher 1 | . . . 1 . . . Swarmer 14 | . 3 6 . . . 5 Grunt 23 | . . 6 6 1 2 8 Brawler 1 | . . 1 . . . . Duelist 1 | . . . 1 . . . Sentry 8 | . . 1 2 1 4 . Hunter 3 | . . . 1 1 . 1 Programmer 2 | . . . . 2 . . Best Kill Streak 15 | . 3 5 4 2 7 15 Combat Bots Only 13 | . 3 5 3 2 2 13 Max Kills in Single Turn 3 | . 1 1 1 1 3 2 Gunslinging . | . . . . . . . Exploded 1 | . . . . 1 1 1 Melee . | . . . . . . . Uniques/NPCs Destroyed . | . . . . . . . Combat | -11 -10 -9 -8 -7 -6 -5 -------- Run | Scr Mat Mat Mat Fac Fac Fac Damage Taken 6540 | . 75 520 816 893 710 3526 Core 1299 | . 23 52 136 52 20 1016 Absorbed by Shields 206 | . . 206 . . . . Core Remaining (%) 90 | 100 90 87 75 92 97 . Volleys Fired 153 | . 8 43 42 22 12 26 Largest 4 | . 2 2 3 4 4 4 Hottest 160 | . 40 43 133 160 149 159 Shots Fired 388 | . 16 86 124 52 41 69 Gun 375 | . 16 86 124 49 41 59 Cannon 6 | . . . . 3 . 3 Launcher 7 | . . . . . . 7 Special . | . . . . . . . Kinetic 297 | . 16 86 91 25 29 50 Thermal 71 | . . . 30 20 12 9 Explosive 7 | . . . . . . 7 Electromagnetic 13 | . . . 3 7 . 3 Robot Hit Streak 22 | . 1 18 11 9 22 7 Robot Miss Streak 7 | . 4 4 3 3 6 7 Penetration Max 1 | . . . . . . 1 Secondary Targets 3 | . . 1 1 . . 1 Max Gunslinging Chain 1 | . . 1 1 . . 1 Shots Hit Robots 281 | . 5 63 86 39 35 53 Core Hits 197 | . 3 23 31 21 47 72 Critical Hits 3 | . . 1 . . . 2 Critical Kills 2 | . . . . . . 2 Critical Parts Destroyed 1 | . . 1 . . . . Melee Attacks . | . . . . . . . Impact . | . . . . . . . Slashing . | . . . . . . . Piercing . | . . . . . . . Sneak Attacks . | . . . . . . . Combat Hostiles . | . . . . . . . Follow-up Attacks . | . . . . . . . Damage Inflicted 5688 | . 49 556 1173 793 1222 1895 Guns 3964 | . 49 556 1173 612 633 941 Cannons 173 | . . . . 84 . 89 Explosions 1539 | . . . . 97 589 853 Melee . | . . . . . . . Ramming 12 | . . . . . . 12 Kinetic 3131 | . 49 556 823 349 510 844 Thermal 1245 | . . . 303 403 368 171 Explosive 1033 | . . . . . 254 779 Electromagnetic 267 | . . . 47 41 90 89 Impact . | . . . . . . . Slashing . | . . . . . . . Piercing . | . . . . . . . Highest Corruption 2 | . . . . 2 . 1 Average Corruption 1 | . . . . 1 . 1 Corruption Purged . | . . . . . . . Effects 3 | . . . . 3 . . Message Errors 3 | . . . . 3 . . Overload Shots . | . . . . . . . Overflow Damage 45 | . . . . 28 17 . Projectiles . | . . . . . . . Explosions 45 | . . . . 28 17 . Melee . | . . . . . . . Knockbacks . | . . . . . . . Impact . | . . . . . . . Kinetic . | . . . . . . . Secondary . | . . . . . . . Self-Inflicted Damage 294 | . . . . 128 160 6 Shots 4 | . . . . 2 2 . Rammed 1 | . . . . . . 1 Targets Rammed 1 | . . . . . . 1 Kicked . | . . . . . . . Crushed . | . . . . . . . Highest Temperature 388 | . . 5 388 264 72 187 Average Temperature 106 | . . 2 133 109 26 77 Received Heat Transfer 1356 | . . 90 315 207 132 612 Effects 1 | . . . . 1 . . Interference 1 | . . . . 1 . . Siege Activations . | . . . . . . . Robots Corrupted . | . . . . . . . Combat Hostiles . | . . . . . . . Parts Fried . | . . . . . . . Impact Corruptions . | . . . . . . . Robots Melted . | . . . . . . . Combat Hostiles . | . . . . . . . Parts Melted 2 | . . . 1 . 1 . Heat Transferred 2113 | . . . 740 642 496 235 Parts Sabotaged . | . . . . . . . Parts Stolen . | . . . . . . . Parts Stripped . | . . . . . . . Power Chain Reactions 3 | . . . . 1 2 . Missiles Intercepted . | . . . . . . . Alert | -11 -10 -9 -8 -7 -6 -5 ------- Run | Scr Mat Mat Mat Fac Fac Fac Peak Influence 631 | . 85 230 218 91 481 631 Average Influence 138 | . 45 136 116 35 248 318 Maximum Alert Level 2 | . . 1 1 . 2 2 Low Security (%) 80 | 100 100 84 94 100 36 56 Level 1 13 | . . 15 5 . 44 12 Level 2 6 | . . . . . 19 30 Level 3 . | . . . . . . . Level 4 . | . . . . . . . Level 5 . | . . . . . . . High Security . | . . . . . . . Max Security . | . . . . . . . Squads Dispatched 17 | . . 2 2 4 4 5 Investigation 2 | . . . 1 1 . . Extermination 2 | . . . . 2 . . Reinforcement 8 | . . 2 1 1 1 3 Assault 1 | . . . . . . 1 Garrison 4 | . . . . . 3 1 Intercept . | . . . . . . . Construction Impeded 1 | . . . . . . 1 Haulers Reinforced 3 | . . . . . 1 2 Stealth | -11 -10 -9 -8 -7 -6 -5 --------- Run | Scr Mat Mat Mat Fac Fac Fac Distress Signals 10 | . . 3 4 . 1 2 Communications Jammed . | . . . . . . . Distress Signals . | . . . . . . . Times Spotted 98 | . 6 26 28 9 10 19 Peak Tracking Total 7 | . 3 7 4 3 2 7 Tactical Retreats 8 | . . . 6 1 . 1 Traps | -11 -10 -9 -8 -7 -6 -5 ------- Run | Scr Mat Mat Mat Fac Fac Fac Traps Triggered 7 | . . 2 1 1 3 . Indirectly 1 | . . . . . 1 . Trap Hack Attempts . | . . . . . . . Triggered . | . . . . . . . Disarmed . | . . . . . . . Reprogrammed . | . . . . . . . Reused . | . . . . . . . Traps Extracted . | . . . . . . . Installed . | . . . . . . . Triggered . | . . . . . . . Machines | -11 -10 -9 -8 -7 -6 -5 ---------- Run | Scr Mat Mat Mat Fac Fac Fac Machines Disabled 23 | . . . . 3 18 2 Max in Single Turn 12 | . . . . 2 12 2 Garrison Access 1 | . . . . . . 1 Machines Sabotaged . | . . . . . . . Garrisons Compromised . | . . . . . . . Overloaded Fab Kills . | . . . . . . . Fab Network Shutdowns . | . . . . . . . Hacking | -11 -10 -9 -8 -7 -6 -5 --------- Run | Scr Mat Mat Mat Fac Fac Fac Machines Accessed 12 | . 1 2 2 3 2 2 Terminals 6 | . 1 1 1 2 . 1 Fabricators 2 | . . . . . 1 1 Repair Stations 2 | . . 1 1 . . . Recycling Units . | . . . . . . . Scanalyzers 2 | . . . . 1 1 . Garrison Access . | . . . . . . . Total Hacks 30 | . 4 6 7 6 4 3 Successful 17 | . 1 4 6 3 2 1 Failed 12 | . 3 2 1 2 2 2 Catastrophic . | . . . . . . . Database Lockouts 1 | . . . . 1 . . Manual . | . . . . . . . Terminals 19 | . 4 4 5 5 . 1 Fabricators 5 | . . . . . 3 2 Repair Stations 4 | . . 2 2 . . . Recycling Units . | . . . . . . . Scanalyzers 2 | . . . . 1 1 . Garrison Access . | . . . . . . . Terminal Hacks 10 | . 1 2 4 3 . . Record 8 | . 1 . 4 3 . . Dispatch Records 1 | . . 1 . . . . Recall Investigation 1 | . . 1 . . . . Fabricator Hacks 3 | . . . . . 2 1 Network Status 1 | . . . . . 1 . Build 2 | . . . . . 1 1 Repair Station Hacks 4 | . . 2 2 . . . Scan Component 2 | . . 1 1 . . . Repair 2 | . . 1 1 . . . Recycling Unit Hacks . | . . . . . . . Scanalyzer . | . . . . . . . Garrison Access Hacks . | . . . . . . . Unauthorized Hacks . | . . . . . . . Terminals . | . . . . . . . Fabricators . | . . . . . . . Repair Stations . | . . . . . . . Recycling Units . | . . . . . . . Scanalyzers . | . . . . . . . Garrison Access . | . . . . . . . Data Cores Recovered . | . . . . . . . Used . | . . . . . . . Hacking Detections 10 | . 1 2 1 3 1 2 Full Trace Events . | . . . . . . . Feedback Events . | . . . . . . . Feedback Blocked . | . . . . . . . Robot Schematics Acquired . | . . . . . . . Robots Built . | . . . . . . . Matter . | . . . . . . . Time . | . . . . . . . Total Robot Build Rating . | . . . . . . . Part Schematics Acquired . | . . . . . . . Parts Built 2 | . . . . . 2 . Matter 424 | . . . . . 212 212 Time 212 | . . . . . 106 106 Total Part Build Rating 12 | . . . . . 12 . Parts Repaired 2 | . . 1 1 . . . Time 76 | . . 32 44 . . . Parts Recycled . | . . . . . . . Recycled Matter . | . . . . . . . Retrieved Matter . | . . . . . . . Retrieved Components . | . . . . . . . Parts Scanalyzed . | . . . . . . . Part Schematics Acquired . | . . . . . . . Parts Damaged . | . . . . . . . Bothacking | -11 -10 -9 -8 -7 -6 -5 ------------ Run | Scr Mat Mat Mat Fac Fac Fac Used RIF Installer . | . . . . . . . Robots Hacked . | . . . . . . . Non-combat . | . . . . . . . Combat . | . . . . . . . Robot Hacks Applied . | . . . . . . . Relay Couplers Released 2 | . . . . . . 2 Machine Destruction 2 | . . . . . . 2 Robots Rewired . | . . . . . . . Allies Hacked . | . . . . . . . Hacks Repelled . | . . . . . . . Allies | -11 -10 -9 -8 -7 -6 -5 -------- Run | Scr Mat Mat Mat Fac Fac Fac Total Allies . | . . . . . . . Largest Group . | . . . . . . . Highest-Rated Group . | . . . . . . . Highest-Rated Ally . | . . . . . . . Total Orders . | . . . . . . . Ally Attacks . | . . . . . . . Total Damage . | . . . . . . . Kills . | . . . . . . . Allies Corrupted . | . . . . . . . Allies Melted . | . . . . . . . Intel | -11 -10 -9 -8 -7 -6 -5 ------- Run | Scr Mat Mat Mat Fac Fac Fac Robot Analysis Total . | . . . . . . . Derelict Logs Recovered . | . . . . . . . Drone Launches . | . . . . . . . Drone Recoveries . | . . . . . . . Exploration | -11 -10 -9 -8 -7 -6 -5 ------------- Run | Scr Mat Mat Mat Fac Fac Fac Turns Passed 4156 | 54 237 968 864 947 700 386 Spaces Moved 2051 | 41 121 327 377 597 375 213 Core 45 | 14 . . . . . 31 Treads . | . . . . . . . Legs 2005 | 27 121 327 377 597 375 181 Wheels 1 | . . . . . . 1 Hover . | . . . . . . . Flight . | . . . . . . . Fastest Speed 50 | 50 120 150 150 120 122 50 Average Speed 143 | 96 123 175 151 141 124 135 Slowest Speed 850 | 120 180 240 180 150 152 850 Overloaded Moves . | . . . . . . . Propulsion Burnouts . | . . . . . . . Robots Hopped . | . . . . . . . Cave-ins Triggered . | . . . . . . . Exploration Rate (%) 17 | 3 24 30 35 15 12 6 Regions Visited 6 Branch Regions . Pre-discovered Areas . | . . . . . . . Known Exits Taken . | . . . . . . . Unknown Exits Taken 6 | 1 1 1 1 1 1 . Scrap Searched . | . . . . . . . Spaces Dug . | . . . . . . . Terrain Destroyed 66 | . . . . 5 13 48 Melee . | . . . . . . . Projectile . | . . . . . . . AOE 66 | . . . . 5 13 48 Actions | -11 -10 -9 -8 -7 -6 -5 --------- Run | Scr Mat Mat Mat Fac Fac Fac Total 2995 | 54 197 651 586 654 582 271 Wait 599 | . 54 249 116 7 167 6 Move 2045 | 40 120 326 376 596 374 213 Hop . | . . . . . . . Pick Up 62 | 8 7 11 12 10 9 5 Fast Attach 21 | 2 2 3 3 5 2 4 Attach 29 | 4 . 3 2 5 5 10 Detach 3 | . 1 . 1 . 1 . Swap 30 | . . 6 12 5 6 1 Drop 52 | . 5 10 22 4 6 5 Fire 153 | . 8 43 42 22 12 26 Melee . | . . . . . . . Ram 1 | . . . . . . 1 Kick . | . . . . . . . Crush . | . . . . . . . Escape Stasis . | . . . . . . . Rewire . | . . . . . . . Trap . | . . . . . . . Miscellaneous . | . . . . . . . Route ------- -11/Scrapyard -10/Materials -9/Materials -8/Materials -7/Factory -6/Factory -5/Factory History --------- Turn | Location | Event 8 | -11/Scrapyard | Discovered new exit (range 13) 55 | -11/Scrapyard | Entered Materials 249 | -10/Materials | Discovered new exit (range 5) 292 | -10/Materials | Entered another Materials area 292 | -9/Materials | Evolved 2 slots: Utility x1, Weapon x1 313 | -9/Materials | Build established: Mutant 1127 | -9/Materials | Repaired Shield Generator 1246 | -9/Materials | Discovered new exit (range 5) 1260 | -9/Materials | Entered another Materials area 1260 | -8/Materials | Evolved 2 slots: Propulsion x2 1566 | -8/Materials | Build established: Scavenger-Tank 1899 | -8/Materials | Discovered new exit (range 16) 2000 | -8/Materials | Repaired Imp. Medium Armor Plating 2124 | -8/Materials | Entered Factory 2124 | -7/Factory | Evolved 2 slots: Utility x1, Weapon x1 2261 | -7/Factory | Central database locked down 2881 | -7/Factory | Lost 4 parts (1n1u2w) 3025 | -7/Factory | Discovered new exit (range 15) 3071 | -7/Factory | Entered another Factory area 3071 | -6/Factory | Evolved 2 slots: Propulsion x1, Utility x1 3148 | -6/Factory | Garrison activated, responded to threat 3648 | -6/Factory | Fabricated Wave Gun (x2) 3715 | -6/Factory | Discovered new exit (range 15) 3771 | -6/Factory | Entered another Factory area 3771 | -5/Factory | Evolved 2 slots: Power x1, Utility x1 3983 | -5/Factory | Garrison activated, responded to threat 4073 | -5/Factory | Destroyed 13 combat bots 4107 | -5/Factory | Core integrity fell below 50% 4127 | -5/Factory | Lost 19 parts (3p6n3u7w) 4141 | -5/Factory | Core integrity fell below 20% 4157 | -5/Factory | Destroyed by Y-64 Sentinel with Wave Gun Last Messages --------------- 04134_ Lgt. Nuclear Core destroyed. 04135_ Acquired Imp. Ion Engine. 04136_ Penetrated by Slug. 04138_ Identified Imp. Heavy Machine Gun. 04139_ Penetrated by Slug. 04143_ Weapon Cycler destroyed. 04143_ Penetrated by Slug. 04145_ H-66 Slayer destroyed. 04145_ Fusion Modulator explodes. 04145_ Recycling Unit disabled. 04145_ Fusion Modulator explodes. 04145_ Lgt. Angular Momentum Engine tumbles out of recycling unit. 04145_ Penetrated by Slug. 04149_ Slug penetrates Earth. 04149_ Acquired Com. Wheel. 04152_ Penetrated by Slug. 04152_ Imp. Ion Engine destroyed. 04152_ Imp. Heavy Machine Gun destroyed. 04155_ Com. Wheel destroyed. 04156_ Penetrated by Slug. Map ----- +----------------------------------------------------+ | ! " #??????????????????? | | " =%* G " #???????????????????? | | " ! " " #???????????????????? | | " " ! " #??? ??????????????? | | " %% " #?? ??????????????? | | ????# ""#### ??????????????? | | ????# != ??????????????? | | ????# ! =%=[[ ?????????????? | | ????# [!|[ ^ ?????????????? | | ????# [!! ?????????????? | | ????# ! [! ?????????????? | | ????# ###+### ;;;;### ! ??????????????? | | ##### # #; #??????????????????? | | # " #; [Y ##?????????????????? | | # ! "" # h * ;#?????????????????? | | #!! ! F" ; = ;#?????????????????? | | #!! "" ; #?????????????????? | | # #?????????????????? | | ########### ! | #?????????????????? | | #???????# ! # ;#?????????????????? | | #???????##########; #?????????????????? | | #???????????????## ;#?????????????????? | | #???????????????# ;#?????????????????? | | #???????????????# ;#?????????????????? | | #???????????????# ;#?????????????????? | | #???????????????# @ #??????????????????? | | #???????????????# * #??????????????????? | | #???????????????# ; "#??????????????????? | | #???????????????# ; ""#??????????????????? | | #???????????????## ; #??????????????????? | | #????????????????# ;;;;;;;###??????????????????? | | ###????????????????## # #????????????????????? | | ????????????????????##### #????????????????????? | | ????????????????????????# ##????????????????????? | | ????????????????????????## #?????????????????????? | | ?????????????????????????# #?????????????????????? | | ??????????????????????????##?????????????????????? | | ?????????????????????????????????????????????????? | | ?????????????????????????????????????????????????? | | ?????????????????????????????????????????????????? | | ?????????????????????????????????????????????????? | | ?????????????????????????????????????????????????? | | ?????????????????????????????????????????????????? | | ?????????????????????????????????????????????????? | | ?????????????????????????????????????????????????? | | ?????????????????????????????????????????????????? | | ?????????????????????????????????????????????????? | | ?????????????????????????????????????????????????? | | ?????????????????????????????????????????????????? | | ?????????????????????????????????????????????????? | +----------------------------------------------------+ Best States ------------- Heat Dissipation 59 Energy Generation 21 Energy Capacity 315 Matter Stores 300 Matter Capacity 300 Sight Range 16 Terrain Scan Density 85 ECM Strength 3 Additional Mass Support 9 Armor Coverage 225 Weapon Cycling 15 Evasion (%) 50 Energy Filtering 30 Item Schematics ----------------- None Robot Schematics ------------------ None Fabricated ------------ Wave Gun | x2 | -6/Factory | Preloaded Alien Tech Used ----------------- None Achievements -------------- It Was An Accident, I Swear More Dakka Please Part-time Mechanic Challenges ------------ None Game ------ Seed ParticleContainmentAutogun Manual? 0 Play Time 01:14:39 Cumulative 11.9 hours Start 2020.06.16 @ 15:12:46 End 2020.06.16 @ 17:01:17 Sessions 3 Manual Loads 0 Difficulty Rogue Special Mode None Game No. 10 Rogue 10 Adventurer 0 Explorer 0 Win Type - Total 0 Types 0/0/0/0/0/0/0 Lore% 10 Gallery% 16 Achievement% 15 Wizard Run 0 Options --------- ASCII 0 Keyboard 0 Movement Mouse Keybinds 0 Fullscreen 1 Font 18/SmallcapsGlow Map View 76x50 Tactical HUD 1 Map Filters NONE Filters NONE Steam 1 RUN: d4cf7c6c-70f1-4d0f-a072-e565dd9af2c8